[Event "Shropshire Chess Congress 2019"]
[Site "Telford"]
[Date "2019.01.04"]
[Round "1"]
[White "Ireland, David"]
[Black "Stewart, Ashley"]
[Result "1/2-1/2"]
[ECO "B23"]
[WhiteElo "1939"]
[BlackElo "2160"]
[Annotator "NA"]
[PlyCount "143"]
[EventDate "2019.01.04"]
[EventType "swiss"]
[EventCountry "GBR"]
[SourceTitle "playchess.com"]
[Source "ChessBase"]
[SourceQuality "1"]
[TimeControl "5400+30"]

1. e4 {[%emt 0:00:00]} c5 {[%emt 0:00:00]} 2. Nc3 {[%emt 0:00:00]} g6 {[%emt 0:00:15]} 3. f4 {[%emt 0:00:23]} Bg7 {[%emt 0:00:06]} 4. Nf3 {[%emt 0:00:16]} Nc6 {[%emt 0:00:05]} 5. Bb5 {[%emt 0:00:17]} Nd4 {[%emt 0:00:08]} 6. O-O {[%emt 0:00:14]} Nxb5 {[%emt 0:00:04]} 7. Nxb5 {[%emt 0:00:12]} d5 {[%emt 0:00:14]} 8. e5 {[%emt 0:00:44]} Bd7 {[%emt 0:02:36] B23: Closed Sicilian: Lines without g3} (8... d4 9. c3 Bd7 10. Qe2 a6 11. Na3 dxc3 12. dxc3 Nh6 13. Rd1 Qc7 14. Nc4 O-O 15. Rxd7 Qxd7 16. Nb6 {½-½ (48) Dimitrov,R (2465)-Spasov,V (2553) Pleven 2015}) 9. Nc3 {[%emt 0:00:47]} e6 {[%emt 0:08:52]} 10. d4 {[%emt 0:03:38]} cxd4 {[%emt 0:07:51]} 11. Nxd4 $146 {[%emt 0:03:34]} ({Predecessor:} 11. Qxd4 Nh6 12. Qd3 O-O 13. Be3 Qc7 14. Nb5 Bxb5 15. Qxb5 {0-1 (70) Gamazo,J (1571)-Baumann,D (1952) IECG email 2006}) 11... Ne7 {[%emt 0:01:20]} 12. Be3 {[%emt 0:05:42]} O-O {[%emt 0:08:28]} 13. Qe2 {[%emt 0:06:20]} a6 {[%emt 0:13:00]} 14. Rad1 {[%emt 0:07:50]} Qc7 {[%emt 0:04:11]} 15. Qg4 {[%emt 0:08:35]} Nc6 {[%emt 0:12:38]} 16. Nxc6 {[%emt 0:09:51]} Qxc6 {[%emt 0:04:59]} 17. Qg3 {[%emt 0:05:11]} f6 {[%emt 0:05:10]} 18. Bd4 {[%emt 0:07:37]} fxe5 {[%emt 0:03:15]} 19. fxe5 {[%emt 0:06:19]} Qc4 {[%emt 0:00:52]} 20. Qd3 {[%emt 0:04:00]} Rxf1+ {[%emt 0:06:02]} 21. Kxf1 {[%emt 0:00:28]} Rf8+ {[%emt 0:03:42]} 22. Kg1 {[%emt 0:03:01]} b5 {[%emt 0:06:05]} 23. Qxc4 {[%emt 0:04:56]} bxc4 {[%emt 0:00:07]} 24. Rf1 {[%emt 0:01:41]} g5 {[%emt 0:02:21]} 25. Rxf8+ {[%emt 0:01:49]} Kxf8 {[%emt 0:00:07]} 26. Kf2 {[%emt 0:02:47]} Be8 {[%emt 0:02:44]} 27. Nd1 {[%emt 0:02:05]} h5 {[%emt 0:01:57]} 28. Ne3 {[%emt 0:01:01]} Bg6 {[%emt 0:01:47]} 29. h3 {[%emt 0:00:54]} Be4 {[%emt 0:01:29]} 30. b3 {[%emt 0:02:27]} cxb3 {[%emt 0:00:19]} 31. axb3 {[%emt 0:00:37]} Kf7 {[%emt 0:01:17]} 32. c4 {[%emt 0:00:34]} dxc4 {[%emt 0:00:20]} 33. Nxc4 {[%emt 0:00:58]} Bd5 {[%emt 0:01:02]} 34. Nd6+ {[%emt 0:00:40]} Kg6 {[%emt 0:00:28]} 35. b4 {[%emt 0:01:04]} g4 {[%emt 0:00:34]} 36. hxg4 {[%emt 0:00:17]} hxg4 {[%emt 0:00:02]} 37. Kg3 {[%emt 0:02:42]} Kg5 {[%emt 0:02:03]} 38. b5 {[%emt 0:00:37]} axb5 39. Nxb5 {[%emt 0:00:04]} Bb3 {[%emt 0:02:00]} 40. Nd6 {[%emt 0:00:33]} Bc2 {[%emt 0:00:54]} 41. Ne8 {[%emt 0:01:43]} Bf8 {[%emt 0:00:16]} 42. Nd6 {[%emt 0:00:57]} Bf5 {[%emt 0:00:27]} 43. Be3+ {[%emt 0:01:02]} Kg6 {[%emt 0:00:02]} 44. Bf4 {[%emt 0:00:50]} Be7 {[%emt 0:00:38]} 45. Kf2 {[%emt 0:00:44]} Bd8 {[%emt 0:00:31]} 46. g3 {[%emt 0:00:25]} Bb6+ {[%emt 0:00:31]} 47. Be3 {[%emt 0:00:10]} Ba5 {[%emt 0:00:20]} 48. Bf4 {[%emt 0:00:28]} Bc3 {[%emt 0:00:16]} 49. Nb5 {[%emt 0:00:39]} Bb4 {[%emt 0:00:59]} 50. Nd6 {[%emt 0:00:18]} Bc2 {[%emt 0:00:26]} 51. Be3 {[%emt 0:00:43]} Bc3 {[%emt 0:00:38]} 52. Bf4 {[%emt 0:00:21]} Kg7 {[%emt 0:00:19]} 53. Ne8+ {[%emt 0:01:06]} Kf7 {[%emt 0:00:29]} 54. Nf6 {[%emt 0:01:02]} Bd1 {[%emt 0:00:29]} 55. Ke3 $11 {[%emt 0:00:22]} Ke7 {[%emt 0:00:56]} 56. Kd3 {[%emt 0:00:23]} Bb2 {[%emt 0:00:39]} 57. Kc4 {[%emt 0:00:59]} Be2+ {[%emt 0:00:37]} 58. Kc5 {[%emt 0:00:29]} Bf3 {[%emt 0:00:29]} 59. Kc4 {[%emt 0:00:49]} Kd8 {[%emt 0:00:26]} 60. Kc5 {[%emt 0:00:20]} Kc7 {[%emt 0:00:20]} 61. Ne8+ {[%emt 0:00:22]} Kd8 {[%emt 0:00:28]} 62. Nf6 {[%emt 0:00:28]} Ke7 {[%emt 0:00:28]} 63. Ng8+ {[%emt 0:00:13]} Kf7 {[%emt 0:00:14]} 64. Nf6 {[%emt 0:00:09]} Bd1 {[%emt 0:00:45]} 65. Ne4 {[%emt 0:01:50]} Ba3+ {[%emt 0:00:44]} 66. Kd4 {[%emt 0:00:15]} Bf3 {[%emt 0:00:31]} 67. Ng5+ {[%emt 0:00:44]} Kg6 {[%emt 0:00:33]} 68. Nxe6 {[%emt 0:00:41]} Bb2+ {[%emt 0:00:14]} 69. Ke3 {[%emt 0:00:19]} Kf5 {[%emt 0:00:43]} 70. Nd4+ {[%emt 0:01:41]} Bxd4+ {[%emt 0:00:06]} 71. Kxd4 {[%emt 0:00:05]} Ke6 {[%emt 0:00:08]} 72. Kc5 1/2-1/2

[Event "Shropshire Chess Congress 2019"]
[Site "Telford"]
[Date "2019.01.04"]
[Round "1"]
[White "Zabrocki, Philip"]
[Black "Sygnowski, Tomasz"]
[Result "0-1"]
[ECO "C00"]
[WhiteElo "1923"]
[BlackElo "2143"]
[Annotator "NA"]
[PlyCount "32"]
[EventDate "2019.01.04"]
[EventType "swiss"]
[EventCountry "GBR"]
[SourceTitle "playchess.com"]
[Source "ChessBase"]
[SourceQuality "1"]
[TimeControl "5400+30"]

1. e4 {[%emt 0:00:00]} e6 {[%emt 0:00:00]} 2. Nf3 {[%emt 0:00:00]} d5 {[%emt 0:00:00]} 3. e5 {[%emt 0:00:00]} c5 {[%emt 0:00:22]} 4. b4 {[%emt 0:00:17]} d4 {[%emt 0:00:13]} 5. b5 {[%emt 0:06:48]} Ne7 {[%emt 0:03:56]} 6. Na3 {[%emt 0:09:49]} Nd5 {[%emt 0:03:59]} 7. Nc4 {[%emt 0:03:17]} a6 {[%emt 0:01:13]} 8. bxa6 {[%emt 0:04:02]} Nxa6 {[%emt 0:03:31]} 9. a4 {[%emt 0:02:32]} Bd7 {[%emt 0:05:35]} 10. Bb2 {[%emt 0:02:36]} Be7 {[%emt 0:07:56]} 11. d3 $2 {[%emt 0:03:35]} (11. c3 $17) 11... Nab4 {[%emt 0:02:32]} 12. a5 {[%emt 0:03:20]} b5 {[%emt 0:04:13]} 13. axb6 {[%emt 0:01:31]} Rxa1 {[%emt 0:00:18]} 14. Bxa1 {[%emt 0:00:08]} Ba4 {[%emt 0:05:05]} 15. Na3 {[%emt 0:05:07]} Qxb6 {[%emt 0:06:39]} 16. Nd2 {[%emt 0:00:12]} Qa5 $19 {[%emt 0:05:46]} 0-1

[Event "Shropshire Chess Congress 2019"]
[Site "Telford"]
[Date "2019.01.05"]
[Round "2"]
[White "Ghasi, Ameet K"]
[Black "Ferrington, Nigel M"]
[Result "1-0"]
[ECO "A08"]
[WhiteElo "2505"]
[BlackElo "2128"]
[Annotator "ChessBase"]
[PlyCount "61"]
[EventDate "2019.01.04"]
[EventType "swiss"]
[EventCountry "GBR"]
[SourceTitle "playchess.com"]
[Source "ChessBase"]
[SourceQuality "1"]
[TimeControl "5400+30"]

1. Nf3 {[%emt 0:00:32]} d5 {[%emt 0:00:00]} 2. g3 {[%emt 0:00:02]} Nf6 {[%emt 0:00:06]} 3. Bg2 {[%emt 0:00:04]} e6 {[%emt 0:00:43]} 4. O-O {[%emt 0:00:03]} Be7 {[%emt 0:00:09]} 5. d3 {[%emt 0:00:03]} O-O {[%emt 0:00:15]} 6. Nbd2 {[%emt 0:00:02]} c5 {[%emt 0:00:50]} 7. e4 {[%emt 0:00:02]} Nc6 {[%emt 0:00:19]} 8. Re1 {[%emt 0:00:02]} b5 {[%emt 0:01:03]} 9. e5 {[%emt 0:00:28]} Nd7 {[%emt 0:00:46]} 10. h4 {[%emt 0:00:16]} Bb7 {[%emt 0:01:52]} 11. Nf1 {[%emt 0:00:29]} Qc7 {[%emt 0:00:39]} 12. Bf4 {[%emt 0:00:10]} Rfc8 {[%emt 0:00:25]} 13. N1h2 {[%emt 0:06:39]} Qd8 {[%emt 0:04:50]} 14. Ng4 {[%emt 0:13:32]} Bf8 {[%emt 0:04:28]} 15. Qd2 {[%emt 0:08:11]} a5 {[%emt 0:01:47]} 16. h5 {[%emt 0:07:43]} h6 {[%emt 0:00:05]} 17. Ngh2 {[%emt 0:00:05]} a4 {[%emt 0:10:53]} 18. g4 {[%emt 0:03:07]} Ne7 {[%emt 0:09:02]} 19. g5 {[%emt 0:01:29]} hxg5 {[%emt 0:08:36]} 20. Bxg5 {[%emt 0:00:45]} a3 {[%emt 0:06:15]} 21. b3 {[%emt 0:00:59]} d4 {[%emt 0:10:33]} 22. Ng4 {[%emt 0:03:29]} Qa5 {[%emt 0:07:04]} 23. Qf4 {[%emt 0:00:37]} Nf5 {[%emt 0:00:44]} 24. Nh4 {[%emt 0:08:21]} Bxg2 {[%emt 0:00:58]} 25. Kxg2 {[%emt 0:00:16]} Nxh4+ {[%emt 0:00:46]} 26. Bxh4 {[%emt 0:00:03]} Nb6 {[%emt 0:09:19]} 27. Kh2 {[%emt 0:23:54]} Nd5 {[%emt 0:04:27]} 28. Nh6+ {[%emt 0:01:53]} gxh6 {[%emt 0:02:22]} 29. Rg1+ {[%emt 0:00:25]} Kh8 {[%emt 0:02:21]} 30. Bf6+ {[%emt 0:00:18]} Kh7 {[%emt 0:01:18]} 31. Qe4# {[%emt 0:00:09]} 1-0

[Event "Shropshire Chess Congress 2019"]
[Site "Telford"]
[Date "2019.01.05"]
[Round "2"]
[White "Merry, Alan B"]
[Black "Brotherton, Trevor"]
[Result "1-0"]
[ECO "A27"]
[WhiteElo "2434"]
[BlackElo "2118"]
[Annotator "NA RC"]
[PlyCount "45"]
[EventDate "2019.01.04"]
[EventType "swiss"]
[EventCountry "GBR"]
[SourceTitle "playchess.com"]
[Source "ChessBase"]
[SourceQuality "1"]
[TimeControl "5400+30"]

1. c4 {[%emt 0:00:00]} e5 {[%emt 0:15:21]} 2. Nc3 {[%emt 0:00:00]} Nc6 {[%emt 0:00:41]} 3. Nf3 {[%emt 0:00:01]} d6 {[%emt 0:02:55]} 4. d4 {[%emt 0:00:56]} Bg4 {[%emt 0:01:34]} 5. d5 {[%emt 0:00:35]} Nce7 {[%emt 0:00:54]} 6. e4 {[%emt 0:01:09]} g6 {[%emt 0:01:23] LiveBook: 11 Games} 7. c5 {[%emt 0:01:50]} a6 $16 {[%emt 0:01:29]} 8. Qb3 {[%emt 0:02:33]} Rb8 {[%emt 0:03:28]} 9. cxd6 {[%emt 0:01:47]} Qxd6 {[%emt 0:07:55]} 10. Nd2 {[%emt 0:01:55]} Bg7 {[%emt 0:06:10]} 11. Nc4 {[%emt 0:00:17]} Qd8 {[%emt 0:05:58]} 12. f3 {[%emt 0:03:46]} Bd7 {[%emt 0:10:56]} 13. d6 {[%emt 0:01:50]} Nc6 {[%emt 0:03:58]} 14. dxc7 {[%emt 0:03:15]} Qxc7 {[%emt 0:00:33]} 15. Nd5 {[%emt 0:00:14]} Qd8 {[%emt 0:01:25]} 16. Nd6+ {[%emt 0:06:54]} Kf8 {[%emt 0:00:10]} 17. Nxb7 {[%emt 0:01:53]} Qc8 {[%emt 0:09:29]} 18. Bxa6 {[%emt 0:03:55]} Nge7 {[%emt 0:01:43]} 19. Nxe7 {[%emt 0:02:27]} Nxe7 {[%emt 0:01:28]} 20. Nc5 {[%emt 0:01:41]} Rxb3 {[%emt 0:12:12]} 21. Bxc8 {[%emt 0:00:05]} Bxc8 {[%emt 0:00:11]} 22. Nxb3 {[%emt 0:00:59]} Nc6 {[%emt 0:00:14]} 23. Be3 {[%emt 0:00:35]} 1-0

[Event "Shropshire Chess Congress 2019"]
[Site "Telford"]
[Date "2019.01.05"]
[Round "2"]
[White "Maciol, Ryszard"]
[Black "Hebden, Mark L"]
[Result "1/2-1/2"]
[ECO "E81"]
[WhiteElo "2163"]
[BlackElo "2435"]
[Annotator "NA"]
[PlyCount "104"]
[EventDate "2019.01.04"]
[EventType "swiss"]
[EventCountry "GBR"]
[SourceTitle "playchess.com"]
[Source "ChessBase"]
[SourceQuality "1"]
[TimeControl "5400+30"]

1. d4 {[%emt 0:00:00]} Nf6 {[%emt 0:00:00]} 2. c4 {[%emt 0:00:00]} g6 {[%emt 0:00:00]} 3. Nc3 {[%emt 0:00:00]} Bg7 {[%emt 0:00:05]} 4. e4 {[%emt 0:00:19]} d6 {[%emt 0:00:09]} 5. f3 {[%emt 0:00:11]} O-O {[%emt 0:00:39]} 6. Nge2 {[%emt 0:00:07]} a6 {[%emt 0:00:59]} 7. Ng3 {[%emt 0:00:19] LiveBook: 5 Games} Nc6 {[%emt 0:00:46]} 8. d5 {[%emt 0:00:59]} Ne5 {[%emt 0:00:12]} 9. f4 {[%emt 0:01:26]} Ned7 {[%emt 0:00:19]} 10. Be2 {[%emt 0:02:53]} c6 {[%emt 0:01:28]} 11. Be3 {[%emt 0:01:00]} h5 {[%emt 0:00:36]} 12. O-O {[%emt 0:01:20]} cxd5 {[%emt 0:02:21]} 13. cxd5 {[%emt 0:01:00]} b5 {[%emt 0:01:15]} 14. Bf3 {[%emt 0:04:22]} Nb6 $16 {[%emt 0:02:37]} ({Better is} 14... Bb7 $14) 15. b3 {[%emt 0:07:49]} Bd7 {[%emt 0:09:03]} 16. Rc1 {[%emt 0:03:11]} b4 {[%emt 0:06:11]} 17. Nce2 {[%emt 0:01:06]} Bb5 {[%emt 0:05:14]} 18. Qd2 {[%emt 0:10:01]} h4 {[%emt 0:03:54]} 19. Nh1 {[%emt 0:00:20]} a5 {[%emt 0:06:54]} 20. Rfd1 {[%emt 0:04:38]} Nc8 {[%emt 0:02:07]} 21. Nd4 {[%emt 0:05:23]} Na7 {[%emt 0:00:09]} 22. f5 {[%emt 0:10:35]} Bd7 {[%emt 0:00:37]} 23. fxg6 {[%emt 0:10:51]} fxg6 {[%emt 0:00:18]} 24. Ne6 {[%emt 0:05:02]} Bxe6 {[%emt 0:00:26]} 25. dxe6 {[%emt 0:00:03]} Nb5 {[%emt 0:00:32]} 26. e5 {[%emt 0:01:01]} dxe5 {[%emt 0:00:06]} 27. Qc2 {[%emt 0:05:41]} Nd4 {[%emt 0:01:21]} 28. Bxd4 {[%emt 0:00:23]} exd4 {[%emt 0:00:21]} 29. Bxa8 {[%emt 0:01:15]} Qxa8 {[%emt 0:00:41]} 30. Qxg6 {[%emt 0:01:39]} Nd5 {[%emt 0:00:28]} 31. Nf2 {[%emt 0:03:58]} Nf4 {[%emt 0:03:47]} 32. Qg4 {[%emt 0:00:55]} Qd5 {[%emt 0:00:33]} 33. Nd3 {[%emt 0:03:12]} Qxe6 {[%emt 0:02:32]} 34. Qxe6+ {[%emt 0:03:20]} Nxe6 {[%emt 0:00:10]} 35. g3 {[%emt 0:03:32]} hxg3 {[%emt 0:00:23]} 36. hxg3 {[%emt 0:00:04]} Ng5 {[%emt 0:01:08]} 37. Rc5 {[%emt 0:02:07]} e5 {[%emt 0:01:55]} 38. Rxa5 {[%emt 0:00:34]} Nf3+ {[%emt 0:00:47]} 39. Kg2 {[%emt 0:00:35]} e4 {[%emt 0:00:09]} 40. Nxb4 {[%emt 0:03:07]} e3 {[%emt 0:07:02]} 41. Nd3 {[%emt 0:00:58]} Nd2 {[%emt 0:01:45]} 42. b4 {[%emt 0:02:53]} Nc4 {[%emt 0:02:01]} 43. Rc5 {[%emt 0:01:25]} Nb2 {[%emt 0:01:23]} 44. Nxb2 {[%emt 0:01:10]} Rf2+ {[%emt 0:00:06]} 45. Kh3 {[%emt 0:01:06]} Rxb2 {[%emt 0:00:08]} 46. Rd5 {[%emt 0:00:29]} Rxb4 {[%emt 0:00:54]} 47. Kg2 {[%emt 0:00:19]} Rb2+ {[%emt 0:00:58]} 48. Kf3 {[%emt 0:00:06]} Rf2+ {[%emt 0:00:11]} 49. Ke4 {[%emt 0:00:16]} Rxa2 {[%emt 0:01:15]} 50. Rd8+ {[%emt 0:00:57]} Kf7 {[%emt 0:00:59]} 51. Rf1+ {[%emt 0:00:43]} Bf6 {[%emt 0:04:50]} 52. Rxd4 {[%emt 0:00:32]} e2 1/2-1/2

[Event "Shropshire Chess Congress 2019"]
[Site "Telford"]
[Date "2019.01.05"]
[Round "2"]
[White "Stewart, Ashley"]
[Black "Jarvis, Derek A"]
[Result "1/2-1/2"]
[ECO "A20"]
[WhiteElo "2122"]
[BlackElo "1959"]
[Annotator "NA"]
[PlyCount "128"]
[EventDate "2019.01.04"]
[EventType "swiss"]
[EventCountry "GBR"]
[SourceTitle "playchess.com"]
[Source "ChessBase"]
[SourceQuality "1"]
[TimeControl "5400+30"]

1. c4 {[%emt 0:00:00]} e5 {[%emt 0:00:03]} 2. g3 {[%emt 0:00:00]} Nf6 {[%emt 0:00:17]} 3. Bg2 {[%emt 0:00:00]} c6 {[%emt 0:01:43]} 4. Nf3 {[%emt 0:00:00]} e4 {[%emt 0:01:43]} 5. Nd4 {[%emt 0:00:00]} d5 {[%emt 0:01:47]} 6. d3 {[%emt 0:00:39]} Bb4+ {[%emt 0:07:54]} 7. Bd2 $11 {[%emt 0:08:48] LiveBook: 5 Games} (7. Nc3 $14) 7... Bxd2+ {[%emt 0:06:43]} 8. Qxd2 {[%emt 0:00:27]} O-O {[%emt 0:04:40]} 9. O-O {[%emt 0:02:14]} Qb6 {[%emt 0:04:57]} 10. e3 {[%emt 0:07:35]} exd3 {[%emt 0:06:37]} 11. cxd5 {[%emt 0:00:11]} cxd5 {[%emt 0:06:30]} 12. Nc3 {[%emt 0:00:52]} Nc6 {[%emt 0:01:51]} 13. Qxd3 {[%emt 0:14:32]} Nxd4 {[%emt 0:04:07]} 14. Qxd4 {[%emt 0:00:50]} Qxd4 {[%emt 0:01:01]} 15. exd4 {[%emt 0:00:01]} Be6 {[%emt 0:02:14]} 16. Rac1 {[%emt 0:05:23]} Rac8 {[%emt 0:02:26]} 17. Nb5 {[%emt 0:03:11]} Rfd8 {[%emt 0:12:37]} 18. h3 h5 19. b3 {[%emt 0:13:53]} a6 {[%emt 0:08:21]} 20. Nc3 {[%emt 0:01:42]} Rc6 {[%emt 0:04:03]} 21. Na4 {[%emt 0:02:41]} Rdc8 {[%emt 0:00:57]} 22. Rxc6 {[%emt 0:00:29]} Rxc6 {[%emt 0:00:13]} 23. Nc5 {[%emt 0:01:13]} Bc8 {[%emt 0:01:34]} 24. Re1 {[%emt 0:03:38]} b6 {[%emt 0:03:02]} 25. Na4 {[%emt 0:03:56]} Kf8 {[%emt 0:02:19]} 26. Re2 {[%emt 0:02:00]} Rc1+ {[%emt 0:00:47]} 27. Kh2 {[%emt 0:00:08]} Rc6 {[%emt 0:00:18]} 28. f3 {[%emt 0:09:21]} Be6 {[%emt 0:01:16]} 29. g4 {[%emt 0:01:56]} hxg4 {[%emt 0:02:01]} 30. hxg4 {[%emt 0:02:01]} Nd7 {[%emt 0:00:59]} 31. Nb2 {[%emt 0:02:28]} Rc3 {[%emt 0:00:49]} 32. Rd2 {[%emt 0:00:44]} Ke7 {[%emt 0:00:54]} 33. Kg3 {[%emt 0:03:43]} Kd6 {[%emt 0:00:40]} 34. Nd1 {[%emt 0:02:18]} Rc1 {[%emt 0:01:25]} 35. f4 {[%emt 0:00:54]} g6 {[%emt 0:01:07]} 36. g5 {[%emt 0:02:39]} Nb8 {[%emt 0:01:30]} 37. Bf1 {[%emt 0:01:44]} Bf5 {[%emt 0:00:52]} 38. Ne3 {[%emt 0:00:44]} Rc3 {[%emt 0:00:49]} 39. Kf2 {[%emt 0:00:16]} Be6 {[%emt 0:00:21]} 40. Be2 {[%emt 0:02:11]} Bd7 {[%emt 0:00:36]} 41. Rd1 {[%emt 0:00:39]} Be6 {[%emt 0:00:28]} 42. Bd3 {[%emt 0:01:28]} Bd7 {[%emt 0:00:30]} 43. Ke2 {[%emt 0:01:05]} Bb5 {[%emt 0:01:23]} 44. Bxb5 {[%emt 0:01:02]} axb5 {[%emt 0:00:12]} 45. Rd3 {[%emt 0:01:56]} Rc1 {[%emt 0:00:47]} 46. Ng4 {[%emt 0:00:39]} Nc6 {[%emt 0:03:02]} 47. Ne5 {[%emt 0:00:37]} Nxe5 {[%emt 0:00:53]} 48. fxe5+ {[%emt 0:00:01]} Ke6 {[%emt 0:00:22]} 49. Rf3 {[%emt 0:00:15]} Rc2+ {[%emt 0:00:55]} 50. Kd3 {[%emt 0:00:06]} Rxa2 {[%emt 0:00:30]} 51. Rf6+ {[%emt 0:00:03]} Ke7 {[%emt 0:00:16]} 52. Rxb6 {[%emt 0:00:24]} Rg2 {[%emt 0:00:39]} 53. Rxb5 {[%emt 0:00:17]} Rg3+ {[%emt 0:00:22]} 54. Kc2 {[%emt 0:01:08]} Ke6 {[%emt 0:01:09]} 55. Ra5 {[%emt 0:01:20]} Rxg5 {[%emt 0:00:19]} 56. Kc3 {[%emt 0:00:22]} Rg3+ {[%emt 0:00:28]} 57. Kb4 {[%emt 0:00:10]} Rd3 {[%emt 0:00:20]} 58. Ra6+ {[%emt 0:01:11]} Kf5 {[%emt 0:01:47]} 59. Rf6+ {[%emt 0:00:45]} Ke4 {[%emt 0:00:01]} 60. e6 {[%emt 0:00:33]} Rxd4+ {[%emt 0:01:29]} 61. Kc3 {[%emt 0:00:10]} Rd3+ {[%emt 0:00:16]} 62. Kc2 {[%emt 0:00:14]} fxe6 {[%emt 0:00:48]} 63. Rxe6+ {[%emt 0:00:16]} Kd4 {[%emt 0:00:08]} 64. Rxg6 {[%emt 0:00:10]} Rh3 1/2-1/2

[Event "Shropshire Chess Congress 2019"]
[Site "Telford"]
[Date "2019.01.05"]
[Round "2"]
[White "Mason, Donald J"]
[Black "Ireland, David J"]
[Result "1/2-1/2"]
[ECO "B51"]
[WhiteElo "2097"]
[BlackElo "1930"]
[Annotator "NA"]
[PlyCount "43"]
[EventDate "2019.01.04"]
[EventType "swiss"]
[EventCountry "GBR"]
[SourceTitle "playchess.com"]
[Source "ChessBase"]
[SourceQuality "1"]
[TimeControl "5400+30"]

1. e4 {[%emt 0:00:00]} c5 {[%emt 0:00:42]} 2. Nf3 {[%emt 0:00:00]} d6 {[%emt 0:00:21]} 3. Bb5+ {[%emt 0:00:00]} Nc6 {[%emt 0:01:06]} 4. O-O {[%emt 0:00:20]} Bg4 {[%emt 0:01:37]} 5. h3 {[%emt 0:09:25]} Bh5 {[%emt 0:02:06]} 6. Re1 {[%emt 0:05:52]} e6 {[%emt 0:01:28]} 7. Bxc6+ {[%emt 0:04:30]} bxc6 {[%emt 0:00:10]} 8. d3 $11 {[%emt 0:00:11] LiveBook: 13 Games} Be7 {[%emt 0:02:15]} 9. c3 {[%emt 0:05:10]} Nf6 {[%emt 0:13:01]} 10. Nbd2 {[%emt 0:05:00]} O-O {[%emt 0:01:55]} 11. Nf1 {[%emt 0:08:23]} Nd7 {[%emt 0:12:25]} 12. Ng3 {[%emt 0:06:31]} Bg6 {[%emt 0:00:31]} 13. d4 {[%emt 0:02:23]} cxd4 {[%emt 0:02:07]} 14. Nxd4 {[%emt 0:03:28]} Qc7 {[%emt 0:06:49]} 15. Ndf5 {[%emt 0:09:17]} exf5 {[%emt 0:06:48]} 16. exf5 {[%emt 0:00:02]} Bf6 {[%emt 0:04:33]} 17. fxg6 {[%emt 0:02:20]} hxg6 {[%emt 0:01:02]} 18. Bf4 {[%emt 0:06:38]} Be5 {[%emt 0:04:18]} 19. Bxe5 {[%emt 0:02:21]} Nxe5 {[%emt 0:00:31]} 20. Ne4 {[%emt 0:06:28]} Rad8 {[%emt 0:04:04]} 21. f4 {[%emt 0:03:40]} d5 {[%emt 0:03:31]} 22. Nc5 {[%emt 0:09:42]} 1/2-1/2

[Event "Shropshire Chess Congress 2019"]
[Site "Telford"]
[Date "2019.01.05"]
[Round "2"]
[White "Bin-Suhayl, Ieysaa"]
[Black "Sanchez, Eduardo J"]
[Result "1-0"]
[ECO "E62"]
[WhiteElo "2095"]
[BlackElo "1729"]
[Annotator "NA"]
[PlyCount "65"]
[EventDate "2019.01.04"]
[EventType "swiss"]
[EventCountry "GBR"]
[SourceTitle "playchess.com"]
[Source "ChessBase"]
[SourceQuality "1"]
[TimeControl "5400+30"]

1. Nf3 {[%emt 0:00:00]} Nf6 {[%emt 0:00:00]} 2. c4 {[%emt 0:00:00]} g6 {[%emt 0:00:00]} 3. g3 {[%emt 0:00:00]} Bg7 {[%emt 0:00:00]} 4. Bg2 {[%emt 0:00:00]} O-O {[%emt 0:00:10]} 5. O-O {[%emt 0:00:00]} d6 {[%emt 0:00:18]} 6. d4 {[%emt 0:00:02]} Nc6 {[%emt 0:00:10]} 7. Nc3 {[%emt 0:00:02]} e5 {[%emt 0:00:11]} 8. dxe5 {[%emt 0:00:02]} dxe5 {[%emt 0:00:07]} 9. Bg5 {[%emt 0:03:45]} Be6 {[%emt 0:05:01]} 10. Qa4 {[%emt 0:00:04]} Qc8 {[%emt 0:08:18]} 11. Nd2 $11 {[%emt 0:03:29] LiveBook: 4 Games} Nd4 {[%emt 0:36:43]} 12. e3 {[%emt 0:03:39]} Nf5 {[%emt 0:00:37]} 13. Bxf6 {[%emt 0:05:32]} Bxf6 {[%emt 0:00:02]} 14. Nd5 {[%emt 0:03:30]} Bd8 {[%emt 0:02:20]} 15. Ne4 {[%emt 0:04:53]} c6 {[%emt 0:01:09]} 16. Ndc3 {[%emt 0:10:14]} Be7 {[%emt 0:01:51]} 17. Rfd1 {[%emt 0:01:20]} Qc7 {[%emt 0:04:37]} 18. c5 {[%emt 0:00:24]} b5 {[%emt 0:04:15]} 19. Qc2 {[%emt 0:02:06]} Rad8 {[%emt 0:04:21]} 20. b4 {[%emt 0:01:53]} a5 {[%emt 0:00:26]} 21. a3 {[%emt 0:02:59]} Nh6 {[%emt 0:00:38]} 22. Nd6 {[%emt 0:04:42]} f5 {[%emt 0:04:58]} 23. bxa5 {[%emt 0:03:14]} Nf7 {[%emt 0:00:49]} 24. Nxf7 {[%emt 0:00:49]} Bxf7 {[%emt 0:00:13]} 25. Na2 {[%emt 0:01:28]} Qxa5 {[%emt 0:02:38]} 26. Rxd8 {[%emt 0:02:53]} Rxd8 {[%emt 0:00:33]} 27. Nb4 {[%emt 0:00:07]} Qc7 {[%emt 0:04:39]} 28. Nxc6 {[%emt 0:01:22]} Rc8 {[%emt 0:00:04]} 29. Rb1 {[%emt 0:01:44]} Bc4 {[%emt 0:00:59]} 30. a4 {[%emt 0:01:23]} e4 {[%emt 0:00:05]} 31. axb5 {[%emt 0:00:14]} Bd5 {[%emt 0:00:44]} 32. Nxe7+ {[%emt 0:00:38]} Qxe7 {[%emt 0:00:01]} 33. c6 {[%emt 0:00:40]} 1-0

[Event "Shropshire Chess Congress 2019"]
[Site "Telford"]
[Date "2019.01.05"]
[Round "2"]
[White "Okhai, Shabir"]
[Black "Walton, Alan J"]
[Result "1/2-1/2"]
[ECO "C11"]
[WhiteElo "2073"]
[BlackElo "2149"]
[Annotator "NA"]
[PlyCount "66"]
[EventDate "2019.01.04"]
[EventType "swiss"]
[EventCountry "GBR"]
[SourceTitle "playchess.com"]
[Source "ChessBase"]
[SourceQuality "1"]
[TimeControl "5400+30"]

1. e4 {[%emt 0:00:37]} e6 {[%emt 0:00:00]} 2. d4 {[%emt 0:00:05]} d5 {[%emt 0:00:00]} 3. Nc3 {[%emt 0:01:00]} Nf6 {[%emt 0:00:00]} 4. e5 {[%emt 0:00:05]} Nfd7 {[%emt 0:00:02]} 5. f4 {[%emt 0:00:04]} c5 {[%emt 0:00:04]} 6. Nf3 {[%emt 0:00:03]} Nc6 {[%emt 0:00:08]} 7. Be3 {[%emt 0:00:08]} cxd4 {[%emt 0:01:59]} 8. Nxd4 {[%emt 0:00:07]} Bc5 {[%emt 0:00:30]} 9. Qd2 {[%emt 0:04:03]} a6 {[%emt 0:02:20]} 10. O-O-O {[%emt 0:06:25]} O-O {[%emt 0:01:39]} 11. h4 {[%emt 0:07:50] LiveBook: 364 Games} Qe7 $14 {[%emt 0:03:21]} (11... Nxd4 $11 12. Bxd4 b5) 12. h5 {[%emt 0:07:56]} Bxd4 {[%emt 0:03:35]} 13. Bxd4 {[%emt 0:00:09]} Nxd4 {[%emt 0:00:09]} 14. Qxd4 {[%emt 0:00:05]} Qc5 {[%emt 0:00:10]} 15. Qd2 {[%emt 0:04:16]} f6 {[%emt 0:00:48]} 16. exf6 {[%emt 0:01:35]} Nxf6 {[%emt 0:01:06]} 17. Be2 {[%emt 0:08:08]} b5 {[%emt 0:05:06]} 18. Bf3 {[%emt 0:03:48]} Bb7 {[%emt 0:00:42]} 19. Rhe1 {[%emt 0:11:03]} Rae8 {[%emt 0:07:28]} 20. Qd4 {[%emt 0:02:35]} Nd7 {[%emt 0:08:29]} 21. Bg4 {[%emt 0:06:37]} Qd6 {[%emt 0:06:09]} 22. g3 {[%emt 0:05:14]} Nf6 {[%emt 0:01:11]} 23. Bf3 {[%emt 0:01:32]} Rc8 {[%emt 0:00:27]} 24. Qe3 {[%emt 0:02:54]} Rfe8 {[%emt 0:02:37]} 25. g4 {[%emt 0:04:08]} Qc7 {[%emt 0:05:30]} 26. Qd2 {[%emt 0:06:33]} d4 {[%emt 0:02:19]} 27. Ne4 {[%emt 0:00:48]} Bxe4 {[%emt 0:04:29]} 28. Bxe4 {[%emt 0:00:18]} Nxg4 {[%emt 0:00:10]} 29. Qxd4 {[%emt 0:03:05]} Red8 {[%emt 0:02:09]} 30. Qb4 {[%emt 0:06:13]} Rxd1+ {[%emt 0:00:29]} 31. Rxd1 {[%emt 0:02:58]} Nf2 {[%emt 0:00:17]} 32. Rd2 {[%emt 0:01:38]} Nxe4 {[%emt 0:10:12]} 33. Qxe4 {[%emt 0:00:05]} Re8 {[%emt 0:00:49]} 1/2-1/2